Workbook

Sheet BSG
A1: Please enter your specific information below
A4: Target
A5: Mean
A6: Standard Deviation
A9: Y Axis Min | B9: -0.05
A10: Y Axis Max | B10: 0.05
A12: Lower Limit | B12: -0.1166666667
A13: Upper Limit | B13: 0.1166666667
A15: Deviation from Target | B15: =B4-B5 -> 0

Sheet Data
A1: Mean | B1: Std Dev
A2: 0.05 | B2: 0.02
A3: 0 | B3: 0.035
A4: -0.05 | B4: 0.02
A6: Mean | B6: Std Dev | C6: Z Upper | D6: Z Lower | E6: % Compliance | F6: % Compliance | G6: Total Compliance
A7: 0.05 | B7: 0.035 | C7: =(BSG!$B$13-A7)/B7 -> 1.904761905 | D7: =(A7-BSG!$B$12)/B7 -> 4.761904762 | E7: =NORMSDIST(C7)-0.5 -> 0.471594486 | F7: =NORMSDIST(D7)-0.5 -> 0.4999990411 | G7: =E7+F7 -> 0.9715935272
A8: 0.049 | B8: 0.036 | C8: =(BSG!$B$13-A8)/B8 -> 1.87962963 | D8: =(A8-BSG!$B$12)/B8 -> 4.601851852 | E8: =NORMSDIST(C8)-0.5 -> 0.4699207139 | F8: =NORMSDIST(D8)-0.5 -> 0.4999979062 | G8: =E8+F8 -> 0.9699186201
A9: =A7-0.002 -> 0.048 | B9: 0.0371 | C9: =(BSG!$B$13-A9)/B9 -> 1.850853549 | D9: =(A9-BSG!$B$12)/B9 -> 4.438454627 | E9: =NORMSDIST(C9)-0.5 -> 0.4679046876 | F9: 0.4999954696 | G9: =E9+F9 -> 0.9679001572
A10: 0.047 | B10: 0.03797 | C10: =(BSG!$B$13-A10)/B10 -> 1.834781845 | D10: =(A10-BSG!$B$12)/B10 -> 4.310420507 | E10: =NORMSDIST(C10)-0.5 -> 0.4667309902 | F10: =NORMSDIST(D10)-0.5 -> 0.4999918528 | G10: =E10+F10 -> 0.966722843
A11: =A9-0.002 -> 0.046 | B11: 0.03879568922 | C11: =(BSG!$B$13-A11)/B11 -> 1.821508216 | D11: =(A11-BSG!$B$12)/B11 -> 4.192905706 | E11: 0.4657351806 | F11: 0.4999862298 | G11: 0.9657214104
A12: =A11-0.002 -> 0.044 | B12: 0.03989684885 | C12: =(BSG!$B$13-A12)/B12 -> 1.82136356 | D12: =(A12-BSG!$B$12)/B12 -> 4.027051542 | E12: 0.4657241947 | F12: 0.4999717597 | G12: 0.9656959544
A13: 0.042 | B13: 0.04100026792 | C13: =(BSG!$B$13-A13)/B13 -> 1.821126311 | D13: =(A13-BSG!$B$12)/B13 -> 3.869893411 | E13: 0.4657061707 | F13: 0.4999455585 | G13: 0.9656517292
A14: 0.04 | B14: 0.04210066452 | C14: =(BSG!$B$13-A14)/B14 -> 1.821032222 | D14: =(A14-BSG!$B$12)/B14 -> 3.721239759 | E14: 0.4656990205 | F14: 0.4999008764 | G14: 0.965599897
A15: 0.038 | B15: 0.04319341563 | C15: =(BSG!$B$13-A15)/B15 -> 1.821265244 | D15: =(A15-BSG!$B$12)/B15 -> 3.580792684 | E15: 0.4657167265 | F15: 0.4998287233 | G15: 0.9655454498
A16: 0.036 | B16: 0.04427170986 | C16: =(BSG!$B$13-A16)/B16 -> 1.822081571 | D16: =(A16-BSG!$B$12)/B16 -> 3.448402313 | E16: 0.4657786953 | F16: 0.4997180433 | G16: 0.9654967385
A17: 0.034 | B17: 0.04533239015 | C17: =(BSG!$B$13-A17)/B17 -> 1.823567352 | D17: =(A17-BSG!$B$12)/B17 -> 3.323598561 | E17: 0.465891247 | F17: 0.4995556799 | G17: 0.9654469269
A18: 0.032 | B18: 0.04636441248 | C18: =(BSG!$B$13-A18)/B18 -> 1.826113222 | D18: =(A18-BSG!$B$12)/B18 -> 3.206482272 | E18: 0.4660833955 | F18: 0.4993281571 | G18: 0.9654115526
A19: 0.03 | B19: 0.04737067688 | C19: =(BSG!$B$13-A19)/B19 -> 1.829542501 | D19: =(A19-BSG!$B$12)/B19 -> 3.096148849 | E19: 0.4663408108 | F19: 0.4990197404 | G19: 0.9653605512
A20: 0.028 | B20: 0.04832611753 | C20: =(BSG!$B$13-A20)/B20 -> 1.834756674 | D20: =(A20-BSG!$B$12)/B20 -> 2.993550363 | E20: 0.4667291246 | F20: 0.49862124 | G20: 0.9653503646
A21: 0.026 | B21: 0.04923749355 | C21: =(BSG!$B$13-A21)/B21 -> 1.841415152 | D21: =(A21-BSG!$B$12)/B21 -> 2.897520901 | E21: 0.467219628 | F21: 0.4981193766 | G21: 0.9653390046
A22: 0.024 | B22: 0.05009668677 | C22: =(BSG!$B$13-A22)/B22 -> 1.849756394 | D22: =(A22-BSG!$B$12)/B22 -> 2.807903591 | E22: 0.4678256658 | F22: 0.4975067424 | G22: 0.9653324082
A23: 0.022 | B23: 0.05089903355 | C23: =(BSG!$B$13-A23)/B23 -> 1.859891241 | D23: =(A23-BSG!$B$12)/B23 -> 2.724347733 | E23: 0.4685495426 | F23: 0.4967785684 | G23: 0.965328111
A24: 0.02 | B24: 0.05163821255 | C24: =(BSG!$B$13-A24)/B24 -> 1.871998698 | D24: =(A24-BSG!$B$12)/B24 -> 2.646618849 | E24: 0.4693966082 | F24: 0.4959349535 | G24: 0.9653315616
A25: 0.018 | B25: 0.05230679014 | C25: =(BSG!$B$13-A25)/B25 -> 1.886307044 | D25: =(A25-BSG!$B$12)/B25 -> 2.574554208 | E25: 0.4703732047 | F25: 0.4949815321 | G25: 0.9653547368
A26: 0.016 | B26: 0.05291543028 | C26: =(BSG!$B$13-A26)/B26 -> 1.902406654 | D26: =(A26-BSG!$B$12)/B26 -> 2.507145193 | E26: 0.4714409941 | F26: 0.4939144647 | G26: 0.9653554588
A27: 0.014 | B27: 0.05345210697 | C27: =(BSG!$B$13-A27)/B27 -> 1.92072254 | D27: =(A27-BSG!$B$12)/B27 -> 2.44455596 | E27: 0.4726166518 | F27: 0.492748471 | G27: 0.9653651228
A28: 0.012 | B28: 0.05391669027 | C28: =(BSG!$B$13-A28)/B28 -> 1.941266538 | D28: =(A28-BSG!$B$12)/B28 -> 2.386397719 | E28: 0.473887022 | F28: 0.4914928303 | G28: 0.9653798522
A29: 0.01 | B29: 0.05431136621 | C29: =(BSG!$B$13-A29)/B29 -> 1.963984229 | D29: =(A29-BSG!$B$12)/B29 -> 2.332231271 | E29: 0.4752340395 | F29: 0.490155736 | G29: 0.9653897756
A30: 0.008 | B30: 0.05463368782 | C30: =(BSG!$B$13-A30)/B30 -> 1.989004788 | D30: =(A30-BSG!$B$12)/B30 -> 2.281864389 | E30: 0.4766496628 | F30: 0.4887513261 | G30: 0.9654009888
A31: 0.006 | B31: 0.05488435011 | C31: =(BSG!$B$13-A31)/B31 -> 2.016361066 | D31: =(A31-BSG!$B$12)/B31 -> 2.235002627 | E31: 0.4781188832 | F31: 0.4872914119 | G31: 0.965410295
A32: 0.004 | B32: 0.05506341367 | C32: =(BSG!$B$13-A32)/B32 -> 2.046125715 | D32: =(A32-BSG!$B$12)/B32 -> 2.191412748 | E32: 0.4796279982 | F32: 0.4857890313 | G32: 0.9654170295
A33: 0.002 | B33: 0.05517083467 | C33: =(BSG!$B$13-A33)/B33 -> 2.07839282 | D33: =(A33-BSG!$B$12)/B33 -> 2.150894895 | E33: 0.4811634033 | F33: 0.4842577517 | G33: 0.965421155
A34: 0 | B34: 0.05520663229 | C34: =(BSG!$B$13-A34)/B34 -> 2.11327266 | D34: =(A34-BSG!$B$12)/B34 -> 2.11327266 | E34: 0.4827112813 | F34: 0.4827112813 | G34: 0.9654225626
A35: -0.002 | B35: 0.0551708382 | C35: =(BSG!$B$13-A35)/B35 -> 2.150894758 | D35: =(A35-BSG!$B$12)/B35 -> 2.078392687 | E35: 0.4842577463 | F35: 0.4811633972 | G35: 0.9654211435
A36: -0.004 | B36: 0.05506342992 | C36: =(BSG!$B$13-A36)/B36 -> 2.191412101 | D36: =(A36-BSG!$B$12)/B36 -> 2.046125111 | E36: 0.4857890079 | F36: 0.4796279685 | G36: 0.9654169764
A37: -0.006 | B37: 0.05488436271 | C37: =(BSG!$B$13-A37)/B37 -> 2.235002114 | D37: =(A37-BSG!$B$12)/B37 -> 2.016360603 | E37: 0.487291395 | F37: 0.478118859 | G37: 0.965410254
A38: -0.008 | B38: 0.05463368295 | C38: =(BSG!$B$13-A38)/B38 -> 2.281864592 | D38: =(A38-BSG!$B$12)/B38 -> 1.989004966 | E38: 0.4887513321 | F38: 0.4766496726 | G38: 0.9654010046
A39: -0.01 | B39: 0.05431135962 | C39: =(BSG!$B$13-A39)/B39 -> 2.332231554 | D39: =(A39-BSG!$B$12)/B39 -> 1.963984467 | E39: 0.4901557435 | F39: 0.4752340533 | G39: 0.9653897968
A40: -0.012 | B40: 0.05392412889 | C40: =(BSG!$B$13-A40)/B40 -> 2.386068525 | D40: =(A40-BSG!$B$12)/B40 -> 1.940998748 | E40: 0.4914852112 | F40: 0.4738707854 | G40: 0.9653559966
A41: -0.014 | B41: 0.05345215399 | C41: =(BSG!$B$13-A41)/B41 -> 2.44455381 | D41: =(A41-BSG!$B$12)/B41 -> 1.92072085 | E41: 0.4927484278 | F41: 0.4726165452 | G41: 0.965364973
A42: -0.016 | B42: 0.05291527073 | C42: =(BSG!$B$13-A42)/B42 -> 2.507152752 | D42: =(A42-BSG!$B$12)/B42 -> 1.90241239 | E42: 0.4939145949 | F42: 0.4714413688 | G42: 0.9653559636
A43: -0.018 | B43: 0.0523067023 | C43: =(BSG!$B$13-A43)/B43 -> 2.574558532 | D43: =(A43-BSG!$B$12)/B43 -> 1.886310211 | E43: 0.4949815949 | F43: 0.470373418 | G43: 0.9653550128
A44: -0.02 | B44: 0.05163820477 | C44: =(BSG!$B$13-A44)/B44 -> 2.646619248 | D44: =(A44-BSG!$B$12)/B44 -> 1.87199898 | E44: 0.4959349582 | F44: 0.4693966277 | G44: 0.9653315859
A45: -0.022 | B45: 0.05089895919 | C45: =(BSG!$B$13-A45)/B45 -> 2.724351713 | D45: =(A45-BSG!$B$12)/B45 -> 1.859893958 | E45: 0.4967786072 | F45: 0.4685497348 | G45: 0.9653283421
A46: -0.024 | B46: 0.05009669598 | C46: =(BSG!$B$13-A46)/B46 -> 2.807903074 | D46: =(A46-BSG!$B$12)/B46 -> 1.849756054 | E46: 0.4975067384 | F46: 0.4678256413 | G46: 0.9653323796
A47: -0.026 | B47: 0.04923750983 | C47: =(BSG!$B$13-A47)/B47 -> 2.897519943 | D47: =(A47-BSG!$B$12)/B47 -> 1.841414543 | E47: 0.4981193709 | F47: 0.4672195834 | G47: 0.9653389543
A48: -0.028 | B48: 0.04832613081 | C48: =(BSG!$B$13-A48)/B48 -> 2.99354954 | D48: =(A48-BSG!$B$12)/B48 -> 1.83475617 | E48: 0.4986212363 | F48: 0.4667290872 | G48: 0.9653503235
A49: -0.03 | B49: 0.04737203413 | C49: =(BSG!$B$13-A49)/B49 -> 3.096060141 | D49: =(A49-BSG!$B$12)/B49 -> 1.829490083 | E49: 0.4990194471 | F49: 0.4663368882 | G49: 0.9653563353
A50: -0.032 | B50: 0.04636457698 | C50: =(BSG!$B$13-A50)/B50 -> 3.206470895 | D50: =(A50-BSG!$B$12)/B50 -> 1.826106743 | E50: 0.4993281305 | F50: 0.4660829077 | G50: 0.9654110382
A51: -0.034 | B51: 0.04533238759 | C51: =(BSG!$B$13-A51)/B51 -> 3.323598749 | D51: =(A51-BSG!$B$12)/B51 -> 1.823567455 | E51: 0.4995556802 | F51: 0.4658912547 | G51: 0.965446935
A52: -0.036 | B52: 0.04427170566 | C52: =(BSG!$B$13-A52)/B52 -> 3.44840264 | D52: =(A52-BSG!$B$12)/B52 -> 1.822081744 | E52: 0.4997180436 | F52: 0.4657787084 | G52: 0.965496752
A53: -0.038 | B53: 0.04319341695 | C53: =(BSG!$B$13-A53)/B53 -> 3.580792574 | D53: =(A53-BSG!$B$12)/B53 -> 1.821265188 | E53: 0.4998287232 | F53: 0.4657167223 | G53: 0.9655454455
A54: -0.04 | B54: 0.04210066217 | C54: =(BSG!$B$13-A54)/B54 -> 3.721239966 | D54: =(A54-BSG!$B$12)/B54 -> 1.821032324 | E54: 0.4999008765 | F54: 0.4656990283 | G54: 0.9655999048
A55: -0.042 | B55: 0.04100022236 | C55: =(BSG!$B$13-A55)/B55 -> 3.869897711 | D55: =(A55-BSG!$B$12)/B55 -> 1.821128335 | E55: 0.4999455595 | F55: 0.4657063245 | G55: 0.965651884
A56: -0.044 | B56: 0.03989687413 | C56: =(BSG!$B$13-A56)/B56 -> 4.02704899 | D56: =(A56-BSG!$B$12)/B56 -> 1.821362406 | E56: 0.4999717594 | F56: 0.4657241071 | G56: 0.9656958665
A57: -0.046 | B57: 0.03879 | C57: =(BSG!$B$13-A57)/B57 -> 4.193520667 | D57: =(A57-BSG!$B$12)/B57 -> 1.821775372 | E57: 0.4999862671 | F57: 0.4657554619 | G57: 0.965741729
A58: -0.047 | B58: 0.03797 | C58: =(BSG!$B$13-A58)/B58 -> 4.310420507 | D58: =(A58-BSG!$B$12)/B58 -> 1.834781845 | E58: =NORMSDIST(C58)-0.5 -> 0.4999918528 | F58: =NORMSDIST(D58)-0.5 -> 0.4667309902 | G58: =E58+F58 -> 0.966722843
A59: =A57-0.002 -> -0.048 | B59: 0.0371 | C59: =(BSG!$B$13-A59)/B59 -> 4.438454627 | D59: =(A59-BSG!$B$12)/B59 -> 1.850853549 | E59: 0.4999954696 | F59: 0.4679046876 | G59: 0.9679001572
A60: -0.049 | B60: 0.036 | C60: =(BSG!$B$13-A60)/B60 -> 4.601851852 | D60: =(A60-BSG!$B$12)/B60 -> 1.87962963 | E60: =NORMSDIST(C60)-0.5 -> 0.4999979062 | F60: =NORMSDIST(D60)-0.5 -> 0.4699207139 | G60: =E60+F60 -> 0.9699186201
A61: =A59-0.002 -> -0.05 | B61: 0.035 | C61: =(BSG!$B$13-A61)/B61 -> 4.761904762 | D61: =(A61-BSG!$B$12)/B61 -> 1.904761905 | E61: 0.4999990411 | F61: 0.471594486 | G61: 0.9715935272
